bitfinex/quotes_BTCUSD_20260126
["timestamp","ask_amount","ask_price","bid_price","bid_amount"]
[1769408774283,0.1706178,87938.0,87928.0,0.0001399]
[1769408774485,0.01137203,87935.0,87928.0,0.0001399]
[1769408774710,0.1706178,87934.0,87928.0,0.0001399]
[1769408774915,1.08365396,87932.0,87928.0,0.0001399]
[1769408775117,1.08365396,87938.0,87928.0,0.0001399]
[1769408775294,0.01853833,87928.0,87921.0,1.16852857]
[1769408775491,0.00853833,87928.0,87922.0,1.16852984]
[1769408775675,0.00853833,87928.0,87924.0,1.14999023]
[1769408775880,0.00853833,87928.0,87925.0,0.02024062]
[1769408776305,0.00853833,87928.0,87926.0,0.02024038]
[1769408776505,0.00853833,87928.0,87920.0,0.50904092]
[1769408776506,0.00853833,87928.0,87923.0,1.14999023]
[1769408776739,0.00853833,87928.0,87924.0,0.02097161]
[1769408777309,0.00853833,87928.0,87925.0,0.001]
[1769408777834,0.009,87924.0,87920.0,0.0002873]
[1769408778577,0.009,87924.0,87907.0,0.17472]
[1769408778578,0.17430863,87923.0,87907.0,0.17472]
[1769408778793,0.17430863,87919.0,87901.0,1.1238091]
[1769408779090,0.17430863,87919.0,87903.0,0.00042728]
[1769408779750,0.17430863,87919.0,87903.0,1.145213]
[1769408779921,0.01137229,87933.0,87903.0,1.12423638]
[1769408779922,0.17430863,87927.0,87903.0,1.12423638]
[1769408780069,0.001,87919.0,87905.0,1.1238091]
[1769408780272,0.001,87919.0,87903.0,0.00042728]
[1769408780273,0.001,87919.0,87907.0,1.1238091]
[1769408780491,0.01137203,87935.0,87917.0,1.0780891]
[1769408780492,0.17472,87932.0,87917.0,1.0780891]
[1769408780699,0.17711882,87933.0,87917.0,1.05126471]
[1769408780903,0.001,87919.0,87917.0,1.05126471]
[1769408781315,0.001,87919.0,87918.0,0.00113828]
[1769408781507,0.001,87919.0,87914.0,1.1238091]
[1769408781705,0.001,87919.0,87916.0,1.1238091]
[1769408781880,0.001,87919.0,87917.0,1.12494739]
[1769408782096,0.17711882,87933.0,87912.0,0.01137501]
[1769408782306,0.001,87928.0,87914.0,1.1238091]
[1769408782512,0.001,87928.0,87916.0,1.1238091]
[1769408782737,0.17983881,87939.0,87917.0,0.00113756]
[1769408782958,0.17983881,87939.0,87918.0,1.12494665]
[1769408783195,0.17983881,87939.0,87915.0,1.1238091]
[1769408783448,0.17983881,87939.0,87917.0,1.1238091]
[1769408783655,0.17983881,87939.0,87919.0,1.1238091]
[1769408783862,0.17983881,87939.0,87921.0,1.1238091]
[1769408784088,0.18083881,87939.0,87923.0,1.1238091]
[1769408784312,0.18083881,87939.0,87924.0,0.00113747]
[1769408784812,0.18083881,87939.0,87924.0,1.12494657]
[1769408785010,0.18083881,87939.0,87924.0,1.1238091]
[1769408785213,0.17983881,87939.0,87924.0,1.1238091]
[1769408785413,0.001,87939.0,87924.0,1.1238091]
[1769408786065,0.18428401,87942.0,87924.0,1.1238091]
[1769408786321,0.18428401,87942.0,87925.0,0.00113835]
[1769408786803,0.18428401,87942.0,87925.0,1.12494745]
[1769408786926,0.18428401,87942.0,87925.0,1.1238091]
[1769408787127,0.18428401,87942.0,87926.0,0.00113834]
[1769408788850,0.18528401,87942.0,87926.0,0.00113834]
[1769408789200,0.18428401,87942.0,87926.0,1.12494744]
[1769408789381,0.18428401,87942.0,87926.0,1.1238091]
[1769408789588,0.18428401,87942.0,87927.0,0.00113832]
[1769408791035,1.14514891,87941.0,87927.0,0.00113832]
[1769408791271,1.14514891,87941.0,87922.0,1.1238091]
[1769408791441,1.14514891,87941.0,87923.0,1.12494795]
[1769408791638,1.34456419,87941.0,87923.0,1.1238091]
[1769408792106,0.19941528,87941.0,87923.0,1.1238091]
[1769408792645,0.20041528,87941.0,87925.0,1.1238091]
[1769408792847,0.20041528,87941.0,87926.0,0.00113793]
[1769408793047,0.19941528,87941.0,87926.0,0.00113793]
[1769408793351,0.20041528,87941.0,87926.0,0.00113793]
[1769408795331,0.19941528,87941.0,87926.0,0.00113793]
[1769408795703,0.20041528,87941.0,87926.0,0.00113793]
[1769408796091,0.19941528,87941.0,87926.0,0.00113793]
[1769408796312,0.001,87941.0,87926.0,0.00113793]
[1769408796487,0.2204242,87940.0,87927.0,0.00113791]
[1769408796690,0.2204242,87940.0,87924.0,1.11216058]
[1769408796895,0.2204242,87940.0,87924.0,1.11102267]
[1769408797128,0.2204242,87940.0,87925.0,0.00113783]
[1769408797951,0.2204242,87938.0,87919.0,1.11102267]
[1769408798166,0.2204242,87938.0,87921.0,1.11102267]
[1769408798368,0.2204242,87938.0,87922.0,0.00113786]
[1769408798369,0.01983561,87937.0,87922.0,0.00113786]
[1769408798574,0.2204242,87938.0,87923.0,1.11102267]
[1769408798716,0.2204242,87938.0,87924.0,0.00113784]
[1769408799436,0.2214242,87938.0,87924.0,1.11216051]
[1769408799637,0.05215151,87938.0,87924.0,1.11102267]
[1769408799972,0.05115151,87938.0,87924.0,1.11102267]
[1769408800180,0.05215151,87938.0,87924.0,1.11102267]
[1769408800522,0.01983561,87937.0,87913.0,0.01137488]
[1769408800728,0.50870791,87930.0,87914.0,0.00113797]
[1769408801131,0.14564924,87926.0,87905.0,1.11102267]
[1769408801369,0.01137138,87940.0,87910.0,0.50870791]
[1769408801370,1.1650643,87925.0,87910.0,0.50870791]
[1769408801571,1.1650643,87925.0,87908.0,1.11102267]
[1769408801778,0.14564924,87926.0,87908.0,1.11102267]
[1769408802218,0.52008059,87930.0,87903.0,0.00042728]
[1769408802219,0.14564924,87918.0,87903.0,0.00042728]
[1769408802470,0.14564924,87917.0,87905.0,0.001]
[1769408802841,0.14564924,87917.0,87903.0,0.00042728]
[1769408803255,0.14564924,87917.0,87908.0,0.001]
[1769408803458,0.14789757,87923.0,87908.0,0.001]
[1769408804317,0.14789757,87923.0,87904.0,0.01659859]
[1769408804530,0.14789757,87923.0,87905.0,1.11102267]
[1769408804746,0.005,87917.0,87906.0,0.01064299]
[1769408805201,0.14789757,87923.0,87907.0,0.53935293]
[1769408805413,0.14789757,87923.0,87910.0,0.50870791]
[1769408805616,0.14789757,87923.0,87911.0,0.01926876]
[1769408805894,0.001,87923.0,87911.0,0.01926876]
[1769408806115,0.001,87923.0,87911.0,1.13029143]
[1769408806339,0.10759131,87927.0,87912.0,1.13377269]
[1769408806567,0.10759131,87927.0,87912.0,1.11102267]
[1769408806790,0.10759131,87927.0,87913.0,1.13263523]
[1769408807042,0.10759131,87927.0,87907.0,0.01137565]
[1769408807043,0.10759131,87945.0,87917.0,0.50870791]
[1769408807264,0.10759131,87938.0,87920.0,1.61973058]
[1769408807482,0.10759131,87938.0,87921.0,1.11102267]
[1769408807876,0.28239131,87944.0,87923.0,0.01137358]
[1769408808109,0.1748,87944.0,87925.0,1.11102267]
[1769408808312,0.1748,87944.0,87921.0,0.01137384]
[1769408808313,0.10759131,87943.0,87927.0,1.11102267]
[1769408808489,0.10759131,87943.0,87928.0,0.02274588]
[1769408809274,0.10759131,87943.0,87922.0,1.11102267]
[1769408809482,0.10759131,87943.0,87923.0,1.1297701]
[1769408809684,0.10759131,87943.0,87923.0,1.11102267]
[1769408809916,1.12449884,87943.0,87924.0,0.01874784]
[1769408810175,0.10759131,87942.0,87924.0,0.01874784]
[1769408810351,0.10759131,87942.0,87924.0,1.12977051]
[1769408810592,0.10759131,87942.0,87924.0,1.11102267]
[1769408810798,1.23209015,87942.0,87924.0,1.11102267]
[1769408811412,0.68350791,87950.0,87901.0,1.11102267]
[1769408811413,1.12449884,87923.0,87901.0,1.11102267]
[1769408811629,0.61629922,87920.0,87904.0,0.00113682]
[1769408811828,0.10759131,87920.0,87904.0,0.00113682]
[1769408811965,0.10759131,87920.0,87903.0,1.11144995]
[1769408813660,0.10859131,87920.0,87903.0,1.11144995]
[1769408814911,1.23209015,87919.0,87903.0,1.11144995]
[1769408816743,1.23309015,87919.0,87903.0,1.11144995]
[1769408817271,1.23309015,87919.0,87903.0,0.00042728]
[1769408817272,1.12449884,87918.0,87903.0,0.00042728]
[1769408817498,0.10759131,87916.0,87903.0,0.00042728]
[1769408817728,1.12449884,87916.0,87903.0,0.00042728]
[1769408817938,0.10759131,87915.0,87903.0,0.00042728]
[1769408818689,0.10759131,87915.0,87903.0,0.00142728]
[1769408819097,0.10759131,87915.0,87903.0,0.00042728]
[1769408819490,0.10759131,87915.0,87903.0,0.00142728]
[1769408819827,0.10759131,87922.0,87904.0,1.11102267]
[1769408820381,1.12449884,87922.0,87904.0,1.11102267]
[1769408820591,0.10759131,87921.0,87904.0,1.11102267]
[1769408820799,0.10759131,87921.0,87910.0,0.50890909]
[1769408821016,0.10759131,87929.0,87911.0,1.11102267]
[1769408821226,0.001,87922.0,87911.0,1.11102267]
[1769408821684,0.10759131,87929.0,87911.0,1.11102267]
[1769408822120,0.001,87921.0,87911.0,1.11102267]
[1769408822543,0.10759131,87929.0,87911.0,1.11102267]
[1769408822815,0.10759131,87929.0,87912.0,0.01137501]
[1769408823053,0.001,87929.0,87913.0,1.11102267]
[1769408823279,0.05859131,87936.0,87914.0,1.0758042]
[1769408823712,0.05859131,87936.0,87916.0,1.0758042]
[1769408823929,1.10901581,87936.0,87916.0,1.0758042]
[1769408824138,0.06518755,87935.0,87916.0,1.0758042]
[1769408824792,0.06518755,87942.0,87918.0,1.0758042]
[1769408825010,0.06518755,87942.0,87919.0,1.0758042]
[1769408825260,0.001,87935.0,87919.0,1.0758042]
[1769408825640,0.06518755,87942.0,87919.0,1.0758042]
[1769408825841,0.06518755,87942.0,87920.0,1.0758042]
[1769408826080,0.06618755,87942.0,87921.0,0.01137384]
[1769408826281,0.001,87942.0,87921.0,0.01137384]
[1769408826437,0.001,87942.0,87928.0,1.0758042]
[1769408826639,0.001,87942.0,87928.0,1.08717714]
[1769408826852,0.001,87942.0,87928.0,1.0758042]
[1769408827144,0.06518755,87948.0,87928.0,1.08717714]
[1769408827354,0.06518755,87948.0,87930.0,1.0758042]
[1769408827556,0.06518755,87948.0,87930.0,1.08717688]
[1769408827707,0.06518755,87948.0,87932.0,1.0758042]
[1769408828305,0.06518755,87948.0,87932.0,1.08717662]
[1769408828651,0.06524589,87948.0,87932.0,1.08717662]
[1769408829025,5.834e-05,87948.0,87932.0,1.08717662]
[1769408829233,5.834e-05,87948.0,87932.0,1.08817662]
[1769408829434,5.834e-05,87948.0,87932.0,0.01237242]
[1769408829634,5.834e-05,87948.0,87933.0,1.0758042]
[1769408829831,5.834e-05,87948.0,87932.0,0.01237242]
[1769408829832,5.834e-05,87948.0,87935.0,1.0758042]
[1769408831045,0.0674357,87953.0,87935.0,0.01137203]
[1769408831253,0.0674357,87953.0,87936.0,1.0758042]
[1769408831585,0.06968402,87961.0,87939.0,1.0758042]
[1769408832180,0.06968402,87960.0,87939.0,1.0758042]
[1769408832405,0.06968402,87959.0,87939.0,1.0758042]
[1769408832636,0.06968402,87958.0,87939.0,1.0758042]
[1769408833596,1.10901581,87957.0,87939.0,1.0758042]
[1769408833801,0.06968402,87956.0,87939.0,1.0758042]
[1769408835315,0.06968402,87956.0,87940.0,1.0758042]
[1769408835962,0.06968402,87956.0,87940.0,1.08717558]
[1769408836576,0.06968402,87962.0,87941.0,1.0758042]
[1769408836777,1.10901581,87962.0,87941.0,1.0758042]
[1769408836958,1.10901581,87961.0,87941.0,1.0758042]
[1769408837167,1.0900049,87960.0,87941.0,1.0758042]
[1769408837370,0.06968402,87958.0,87941.0,1.0758042]
[1769408837978,0.06968402,87968.0,87945.0,0.01137074]
[1769408838155,0.06968402,87968.0,87949.0,1.09267258]
[1769408839482,1.08560638,87968.0,87949.0,1.09267258]
[1769408839806,0.06968402,87967.0,87949.0,1.09267258]
[1769408840213,1.08560638,87966.0,87949.0,1.09267258]
[1769408840422,0.06968402,87965.0,87950.0,0.00113458]
[1769408840716,0.06968402,87965.0,87950.0,0.01988037]
[1769408844091,1.1552904,87965.0,87950.0,0.01988037]
[1769408844308,0.06968402,87965.0,87950.0,0.01988037]
[1769408844511,0.06968402,87965.0,87950.0,1.09267258]
[1769408844708,0.06968402,87965.0,87951.0,0.01988034]
[1769408845197,0.0002452,87969.0,87934.0,1.09267258]
[1769408845198,0.50839199,87961.0,87934.0,1.09267258]
[1769408845394,0.07193282,87948.0,87924.0,0.04552]
[1769408845524,0.50839199,87960.0,87924.0,0.04552]
[1769408845525,0.07193282,87938.0,87924.0,0.04552]
[1769408845726,0.07193282,87938.0,87913.0,0.0002892]
[1769408845728,0.07193282,87934.0,87913.0,0.0002892]
[1769408845935,0.07193282,87927.0,87913.0,0.0002892]
[1769408846290,0.50839199,87930.0,87913.0,0.0002892]
[1769408846291,1.06586709,87922.0,87913.0,0.0002892]
[1769408846494,0.00012201,87938.0,87913.0,0.0002892]
[1769408846495,1.13779991,87921.0,87913.0,0.0002892]
[1769408846613,0.07193282,87921.0,87913.0,0.0002892]
[1769408847237,0.00012201,87938.0,87913.0,0.0002892]
[1769408847238,0.001,87927.0,87914.0,1.09267258]
[1769408847453,0.001,87927.0,87917.0,0.50839199]
[1769408847655,0.04572958,87931.0,87917.0,1.09267258]
[1769408848142,0.04572958,87931.0,87917.0,1.10404694]
[1769408848373,0.04572958,87931.0,87918.0,0.01137423]
[1769408848812,0.04572958,87931.0,87917.0,1.09267258]
[1769408850099,0.04572958,87931.0,87917.0,1.10404694]
[1769408850614,0.04572958,87931.0,87917.0,1.09367258]
[1769408850897,0.04572958,87931.0,87915.0,0.01137462]
[1769408851075,0.04572958,87931.0,87914.0,1.12073974]
[1769408851279,0.04572958,87931.0,87913.0,0.0002892]
[1769408851280,0.04572958,87929.0,87917.0,0.001]
[1769408852511,0.04572958,87929.0,87914.0,1.10404733]
[1769408852672,0.04572958,87929.0,87915.0,0.01237462]
[1769408853082,0.04572958,87929.0,87915.0,0.01137462]
[1769408853511,0.04572958,87929.0,87914.0,1.10404733]
[1769408854339,0.04672958,87929.0,87914.0,1.10404733]
[1769408854567,0.04672958,87929.0,87915.0,0.01137462]
[1769408854702,0.04672958,87929.0,87916.0,0.01137449]
[1769408855065,0.04672958,87929.0,87915.0,0.01137462]
[1769408855237,0.04672958,87929.0,87916.0,0.01137449]
[1769408855483,0.04572958,87929.0,87914.0,1.10404733]
[1769408855846,0.04572958,87929.0,87914.0,1.09267258]
[1769408856048,0.04572958,87929.0,87914.0,1.10404733]
[1769408856350,0.04572958,87929.0,87914.0,1.09267258]
[1769408856569,0.04572958,87929.0,87914.0,1.09367258]
[1769408856891,0.04572958,87929.0,87914.0,1.10504733]
[1769408857097,0.04572958,87929.0,87914.0,1.09267258]
[1769408857550,0.04704428,87936.0,87914.0,1.09367258]
[1769408857754,0.04704428,87934.0,87914.0,1.09367258]
[1769408857943,0.94655879,87933.0,87914.0,1.09367258]
[1769408858144,0.04704428,87932.0,87914.0,1.09367258]
[1769408858306,0.94655879,87932.0,87914.0,1.09367258]
[1769408858504,0.94655879,87932.0,87914.0,1.09267258]
[1769408859399,0.04704428,87932.0,87914.0,1.10404733]
[1769408859816,0.04704428,87932.0,87914.0,1.15007968]
[1769408860019,0.04704428,87932.0,87914.0,1.13870493]
[1769408860240,0.89951451,87931.0,87914.0,1.13870493]
[1769408860409,0.89951451,87931.0,87914.0,1.13770493]
[1769408860837,0.89951451,87931.0,87914.0,1.14907968]
[1769408861700,0.89951451,87931.0,87914.0,1.15007968]
[1769408862132,0.89951451,87931.0,87914.0,1.14907968]
[1769408862343,0.89951451,87931.0,87915.0,0.01137462]
[1769408862533,0.89951451,87931.0,87914.0,1.13870493]
[1769408862735,0.89951451,87931.0,87914.0,1.15007968]
[1769408863176,0.89951451,87931.0,87914.0,1.14907968]
[1769408863383,0.89951451,87931.0,87914.0,1.13770493]
[1769408863534,0.04704428,87932.0,87915.0,0.001]
[1769408863734,0.94655879,87937.0,87917.0,1.15560832]
[1769408863987,0.94655879,87937.0,87919.0,0.04503235]
[1769408864857,0.04704428,87936.0,87919.0,0.04503235]
[1769408865021,0.89951451,87935.0,87919.0,0.04503235]
[1769408865848,0.89951451,87935.0,87919.0,0.04603235]
[1769408866530,0.89951451,87935.0,87919.0,0.04503235]
[1769408866980,0.04704428,87936.0,87919.0,0.04503235]
[1769408867179,0.03435628,87936.0,87920.0,1.14423396]
[1769408867596,0.93387079,87936.0,87920.0,1.6529091]
[1769408867734,0.93387079,87936.0,87920.0,0.50867514]
[1769408868557,0.93387079,87936.0,87920.0,0.50967514]
[1769408868999,0.89951451,87936.0,87920.0,0.50967514]
[1769408869205,0.89951451,87934.0,87920.0,0.50967514]
[1769408870743,0.89951451,87934.0,87920.0,0.50867514]
[1769408871090,0.89951451,87934.0,87920.0,0.50967514]
[1769408871506,0.00012201,87938.0,87920.0,0.50967514]
[1769408871507,0.00012201,87938.0,87924.0,0.50867514]
[1769408871713,0.00012201,87938.0,87923.0,1.18926631]
[1769408871714,0.00012201,87938.0,87923.0,0.04503235]
[1769408872086,0.9466808,87938.0,87923.0,0.04503235]
[1769408872274,0.92732375,87937.0,87920.0,0.50967514]
[1769408872442,0.89951451,87937.0,87920.0,0.50967514]
[1769408872609,0.94655879,87937.0,87920.0,0.50867514]
[1769408874025,0.94655879,87937.0,87923.0,0.001]
[1769408874361,0.94655879,87937.0,87921.0,0.01137384]
[1769408874565,0.94655879,87937.0,87921.0,0.05640619]
[1769408874784,0.94655879,87937.0,87922.0,0.01137371]
[1769408875127,0.94655879,87937.0,87921.0,0.05640619]
[1769408875333,0.00012201,87938.0,87932.0,0.01137242]
[1769408875530,0.00012201,87938.0,87934.0,1.18926631]
[1769408875683,0.00012201,87938.0,87934.0,1.14423396]
[1769408875885,0.00012201,87938.0,87935.0,0.04503235]
[1769408878023,0.00012201,87938.0,87935.0,0.001]
[1769408878796,0.00012201,87938.0,87929.0,0.05640516]
[1769408879002,0.00012201,87938.0,87929.0,0.04503235]
[1769408879609,0.00012201,87938.0,87929.0,0.05640516]
[1769408880106,0.00012201,87938.0,87935.0,0.001]
[1769408880552,0.00012201,87938.0,87929.0,0.04503235]
[1769408880749,0.00012201,87938.0,87929.0,0.04603235]
[1769408881349,0.00012201,87938.0,87929.0,0.04503235]
[1769408881644,0.00012201,87938.0,87935.0,0.001]
[1769408881868,0.89963652,87938.0,87929.0,0.00113525]
[1769408882068,0.89963652,87938.0,87920.0,0.50848187]
[1769408882069,0.00786475,87928.0,87920.0,0.50848187]
[1769408882276,0.00786475,87928.0,87920.0,0.68324187]
[1769408882433,0.89951451,87935.0,87920.0,0.68324187]
[1769408882839,0.89951451,87933.0,87920.0,0.68324187]
[1769408883476,0.94480866,87933.0,87929.0,0.001]
[1769408883624,0.001,87929.0,87920.0,0.17476]
[1769408883824,0.001,87929.0,87920.0,0.68324187]
[1769408884074,0.001,87929.0,87920.0,0.68424187]
[1769408884697,0.001,87929.0,87920.0,0.68324187]
[1769408884898,0.001,87929.0,87920.0,0.68424187]
[1769408885122,0.94480866,87933.0,87920.0,0.68424187]
[1769408885787,0.00012201,87938.0,87922.0,0.01137371]
[1769408885988,0.89963652,87938.0,87922.0,0.01137371]
[1769408886882,0.69825049,87938.0,87922.0,0.01137371]
[1769408887308,0.69825049,87938.0,87922.0,0.01237371]
[1769408887487,0.70026313,87953.0,87928.0,0.50848187]
[1769408887692,0.07741048,87955.0,87928.0,0.50860388]
[1769408887693,0.04529415,87951.0,87928.0,0.50860388]
[1769408887890,0.70026313,87948.0,87928.0,0.50860388]
[1769408888130,0.04529415,87945.0,87928.0,0.50860388]
[1769408888292,0.04529415,87943.0,87928.0,0.50860388]
[1769408888493,0.70026313,87942.0,87928.0,0.00012201]
[1769408888679,0.74555728,87942.0,87929.0,0.00695721]
[1769408889522,0.74555728,87942.0,87930.0,0.50848187]
[1769408890302,0.70026313,87942.0,87930.0,0.50848187]
[1769408891198,0.04529415,87947.0,87930.0,0.50848187]
[1769408891400,0.74555728,87947.0,87930.0,0.50948187]
[1769408893531,0.74555728,87947.0,87930.0,0.50848187]
[1769408893943,0.74555728,87947.0,87930.0,0.50948187]
[1769408894337,0.000233,87949.0,87930.0,0.50948187]
[1769408894338,0.000233,87949.0,87931.0,1.16635688]
[1769408894543,0.000233,87949.0,87932.0,0.04570283]
[1769408894742,0.001,87947.0,87932.0,0.04570283]
[1769408895643,0.001,87947.0,87933.0,0.01137229]
[1769408895843,0.001,87947.0,87932.0,1.21205971]
[1769408896066,0.70049613,87949.0,87932.0,1.21205971]
[1769408896272,0.70149613,87949.0,87932.0,1.21205971]
[1769408896886,0.70049613,87949.0,87932.0,1.21205971]
[1769408897088,0.70049613,87949.0,87932.0,0.04670283]
[1769408897599,0.74900984,87949.0,87932.0,0.04570283]
[1769408897998,0.04874671,87949.0,87932.0,0.04670283]
[1769408898235,0.70026313,87948.0,87932.0,0.04670283]
[1769408899560,0.70026313,87948.0,87932.0,0.04570283]
[1769408899902,0.70026313,87948.0,87932.0,0.04670283]
[1769408901302,0.000233,87949.0,87938.0,1.57479996]
[1769408901534,0.000233,87949.0,87938.0,1.62281898]
[1769408901913,0.000233,87949.0,87938.0,0.55650089]
[1769408902281,0.000233,87949.0,87938.0,0.04801902]
[1769408902455,0.000233,87949.0,87933.0,0.05939131]
[1769408902690,0.000233,87949.0,87933.0,0.04801902]
[1769408902865,0.000233,87949.0,87933.0,0.05939131]
[1769408903455,0.000233,87949.0,87934.0,0.01137216]
[1769408903659,0.000233,87949.0,87933.0,0.06039131]
[1769408904008,0.000233,87949.0,87934.0,0.01137216]
[1769408904645,2.832e-05,87949.0,87939.0,0.50848187]
[1769408905443,2.832e-05,87949.0,87934.0,0.01237216]
[1769408905659,2.832e-05,87949.0,87934.0,0.06039118]
[1769408905975,2.832e-05,87949.0,87934.0,0.04901902]
[1769408906195,0.70026313,87948.0,87934.0,0.04901902]
[1769408906411,0.70026313,87948.0,87934.0,0.04801902]
[1769408906837,0.70026313,87948.0,87934.0,0.04901902]
[1769408907256,0.70026313,87948.0,87934.0,0.04801902]
[1769408907998,0.70026313,87948.0,87930.0,1.57479996]
[1769408908205,0.70026313,87948.0,87934.0,0.001]
[1769408908454,0.74877684,87948.0,87934.0,0.001]
[1769408908883,0.70026313,87948.0,87934.0,0.001]
[1769408909125,0.70026313,87946.0,87934.0,0.001]
[1769408909333,0.70026313,87946.0,87930.0,0.50848187]
[1769408909547,0.70026313,87946.0,87930.0,0.55650089]
[1769408909778,0.70026313,87946.0,87930.0,0.55750089]
[1769408909987,0.70026313,87946.0,87930.0,0.50948187]
[1769408910203,0.04851371,87947.0,87931.0,0.04801902]
[1769408910412,0.04851371,87943.0,87930.0,0.001]
[1769408910628,0.02842653,87946.0,87930.0,0.001]
[1769408910629,0.04851371,87941.0,87930.0,0.0175882]
[1769408910866,0.04851371,87941.0,87930.0,0.52607007]
[1769408910867,0.04851371,87940.0,87930.0,0.52607007]
[1769408911078,0.69927313,87941.0,87930.0,0.52607007]
[1769408911286,0.04851371,87945.0,87930.0,0.52707007]
[1769408911710,0.74778684,87945.0,87930.0,0.52707007]
[1769408911922,0.74778684,87945.0,87931.0,0.02887523]
[1769408913720,0.74778684,87945.0,87931.0,0.02987523]
[1769408914192,2.832e-05,87949.0,87932.0,1.19001588]
[1769408914402,2.832e-05,87949.0,87939.0,0.50848187]
[1769408916148,2.832e-05,87949.0,87936.0,1.13036343]
[1769408916473,2.832e-05,87949.0,87937.0,0.0175882]
[1769408916703,2.832e-05,87949.0,87936.0,1.13036343]
[1769408916910,2.832e-05,87949.0,87939.0,0.001]
[1769408917036,2.832e-05,87949.0,87939.0,0.50948187]
[1769408917273,2.832e-05,87949.0,87940.0,1.13036343]
[1769408918696,0.0001685,87960.0,87943.0,0.04828003]
[1769408919019,0.0001685,87960.0,87950.0,0.50848187]
[1769408920405,0.0001685,87960.0,87951.0,1.17864346]
[1769408920606,0.0001685,87960.0,87952.0,0.04828003]
[1769408920787,0.0001685,87960.0,87953.0,1.13036343]
[1769408923736,0.0001685,87960.0,87952.0,0.04828003]
[1769408923937,0.0001685,87960.0,87952.0,0.05964986]
[1769408924880,0.0001685,87960.0,87953.0,0.0113697]
[1769408925303,0.0001685,87970.0,87950.0,0.75146186]
[1769408925304,0.0001685,87970.0,87960.0,0.0001685]
[1769408925470,0.0001685,87970.0,87961.0,0.01166641]
[1769408925669,0.0001685,87970.0,87960.0,0.04828003]
[1769408926455,0.0001685,87970.0,87952.0,1.13136343]
[1769408926456,0.00027465,87970.0,87952.0,1.14173326]
[1769408926726,0.00027465,87970.0,87960.0,0.50848187]
[1769408927069,0.00027465,87970.0,87961.0,0.001]
[1769408927480,0.00027465,87970.0,87960.0,0.50848187]
[1769408928371,0.00027465,87970.0,87957.0,1.17864346]
[1769408928372,0.00027465,87970.0,87957.0,1.13036343]
[1769408928582,0.00027465,87970.0,87958.0,0.04828003]
[1769408929211,0.00027465,87970.0,87960.0,0.001]
[1769408929741,0.00027465,87970.0,87958.0,0.04828003]
[1769408930095,0.00027465,87970.0,87958.0,0.04928003]
[1769408930621,0.00027465,87970.0,87958.0,0.04828003]
[1769408930825,0.00027465,87970.0,87958.0,0.04928003]
[1769408931619,0.59860814,87975.0,87958.0,0.0697997]
[1769408931771,0.02083349,87974.0,87958.0,0.0697997]
[1769408931976,0.02083349,87974.0,87958.0,0.0687997]
[1769408932177,0.02083349,87974.0,87959.0,0.04828003]
[1769408932542,0.00046661,87975.0,87959.0,0.04828003]
[1769408932948,0.00046661,87975.0,87959.0,0.04836643]
[1769408933093,0.00046661,87975.0,87960.0,0.06688151]
[1769408933294,0.00046661,87975.0,87961.0,0.01702932]
[1769408933632,0.00046661,87975.0,87962.0,0.01973792]
[1769408933774,0.00146661,87975.0,87962.0,0.01973792]
[1769408933975,0.00146661,87975.0,87965.0,0.50848187]
[1769408934202,0.00146661,87975.0,87963.0,0.01136841]
[1769408934203,0.00146661,87975.0,87967.0,0.04828003]
[1769408934404,0.00146661,87975.0,87968.0,0.04803391]
[1769408935107,0.00046661,87975.0,87968.0,0.04803391]
[1769408936324,0.02398053,87978.0,87968.0,0.0185998]
[1769408936526,0.64823188,87977.0,87969.0,0.01859984]
[1769408936726,0.64823188,87977.0,87960.0,0.50820923]
[1769408936727,0.64823188,87977.0,87961.0,0.01859984]
[1769408937107,8.481e-05,87978.0,87959.0,8.64e-05]
[1769408937108,0.04986671,87969.0,87959.0,8.64e-05]
[1769408937330,0.59836517,87968.0,87959.0,0.01756704]
[1769408937781,0.59836517,87974.0,87959.0,0.01756704]
[1769408938070,0.50820923,87970.0,87959.0,0.01756704]
[1769408938226,0.59836517,87969.0,87959.0,0.01756704]
[1769408938873,0.59836517,87971.0,87959.0,0.01756704]
[1769408939077,0.59836517,87971.0,87960.0,0.02898279]
[1769408939908,0.59836517,87971.0,87959.0,8.64e-05]
[1769408940706,0.04986671,87974.0,87960.0,1.63857266]
[1769408941026,0.02398053,87973.0,87960.0,0.50820923]
[1769408942330,0.59836517,87972.0,87959.0,8.64e-05]
[1769408942513,0.59836517,87972.0,87959.0,0.01982353]
[1769408943531,0.59836517,87972.0,87959.0,0.0300448]
[1769408944306,0.04732231,87970.0,87959.0,0.01982353]
[1769408944508,0.04732231,87966.0,87952.0,0.02273967]
[1769408944708,0.59827964,87965.0,87951.0,0.19745993]
[1769408944909,0.64560195,87965.0,87951.0,0.17472]
[1769408945161,0.64560195,87965.0,87951.0,0.20354258]
[1769408945652,0.64560195,87965.0,87951.0,0.02882258]
[1769408946050,0.59827964,87963.0,87951.0,0.02882258]
[1769408946503,0.59827964,87963.0,87948.0,0.0001872]
[1769408946718,0.04732231,87959.0,87937.0,0.0001872]
[1769408946915,0.17472,87973.0,87929.0,0.00113728]
[1769408946916,1.12806053,87944.0,87929.0,0.00113728]
[1769408947094,1.12806053,87942.0,87927.0,0.01251035]
[1769408947235,1.12806053,87942.0,87927.0,0.01364769]
[1769408947431,1.12806053,87942.0,87927.0,0.00227462]
[1769408947851,1.12806053,87942.0,87927.0,0.01364769]
[1769408948053,1.12806053,87942.0,87928.0,0.01137294]
[1769408948271,1.12806053,87942.0,87927.0,0.0141143]
[1769408948907,1.12806053,87942.0,87930.0,0.50820923]
[1769408949562,1.12806053,87942.0,87927.0,0.00046661]
[1769408950334,1.12806053,87942.0,87927.0,0.00160392]
[1769408951515,1.12806053,87942.0,87927.0,0.00046661]
[1769408952562,1.17538284,87942.0,87927.0,0.00046661]
[1769408956395,1.12806053,87955.0,87930.0,0.50820923]
[1769408956590,1.12806053,87953.0,87930.0,0.50820923]
[1769408956810,0.04732231,87950.0,87930.0,0.50820923]
[1769408957009,1.17538284,87949.0,87930.0,0.50820923]
[1769408957720,1.17538284,87949.0,87931.0,0.00113726]
[1769408958318,1.12806053,87949.0,87931.0,0.00113726]
[1769408958515,1.10263169,87947.0,87931.0,0.00113726]
[1769408959336,1.10263169,87947.0,87931.0,0.04723695]
[1769408959911,1.10263169,87947.0,87933.0,0.04609969]
[1769408960110,1.10263169,87947.0,87934.0,0.04723691]
[1769408961934,1.10263169,87947.0,87934.0,0.00113722]
[1769408962135,1.10263169,87947.0,87935.0,0.00113719]
[1769408962336,1.10263169,87947.0,87931.0,0.00113719]
[1769408963471,1.10263169,87947.0,87931.0,0.04723688]
[1769408963685,1.10263169,87947.0,87931.0,0.0483742]
[1769408963874,0.02842653,87946.0,87931.0,0.0483742]
[1769408964099,1.10263169,87945.0,87931.0,0.04609969]
[1769408964416,0.02842718,87944.0,87932.0,0.00227476]
[1769408966396,0.02842718,87944.0,87931.0,0.04609969]
[1769408969086,1.13105887,87944.0,87931.0,0.04609969]
[1769408969281,1.10263169,87944.0,87931.0,0.04609969]